[Event "CCT Julius Baer-D3 2024"]
[Site "Online"]
[Date "2024.09.27"]
[Round "2.3"]
[White "Svane, Rasmus"]
[Black "Moussard, Jules"]
[Result "0-1"]
[ECO "D35"]
[WhiteElo "2629"]
[BlackElo "2600"]
[Annotator "TA"]
[PlyCount "130"]
[EventDate "2024.09.25"]
[EventType "swiss"]
[EventCountry "NET"]
[SourceTitle "playchess.com"]
[Source "ChessBase"]
[SourceQuality "1"]
[TimeControl "600+2"]

{[%evp 67,130,-271,-275,-255,-268,-272,-274,-819,-748,-819,-807,-756,-731,-799,-794,-845,-843,-897,-748,-930,-474,-443,-428,-422,-346,-377,-363,-410,-138,-113,0,-363,-466,-453,-403,-393,-248,-275,-247,-559,-542,-540,-535,-461,-282,-1632,-1434,-1771,-1393,-1533,-1302,-1012,0,-29981,-29982,-29982,-29983,-29983,-29984,-29984,-29985,-29993,-29994,-29994,-1994]} 1. c4 {[%emt 0:00:02]} e6 {[%emt 0:00:03]} 2. Nc3 {[%emt 0:00:02]} d5 {[%emt 0:00:01]} 3. d4 {[%emt 0:00:01]} Nf6 {[%emt 0:00:03]} 4. cxd5 {[%emt 0:00:01]} exd5 {[%emt 0:00:00]} 5. Bg5 {[%emt 0:00:00]} c6 {[%emt 0:00:01]} 6. e3 {[%emt 0:00:01]} h6 {[%emt 0:00:01]} 7. Bh4 {[%emt 0:00:01]} Be7 {[%emt 0:00:00]} 8. Bd3 {[%emt 0:00:01]} O-O {[%emt 0:00:01]} 9. Nge2 {[%emt 0:00:01] 9.Bg3 is setting a new trend. D35: Queen's Gambit Declined: Exchange Variation.} Ne8 {[%emt 0:00:02]} 10. Bg3 {[%emt 0:00:01]} Nd6 {[%emt 0:00:01]} 11. O-O {[%emt 0:00:02]} Re8 {[%emt 0:00:02]} 12. Qd2 {[%emt 0:00:39]} Bf8 $146 {[%emt 0:00:23]} ({Predecessor:} 12... Nd7 13. f3 Nb6 14. b3 Bg5 15. Bf4 Nf5 16. Bxf5 Bxf5 17. Rae1 Bf6 18. Nc1 Bh7 {½-½ Schriever Abeln,M (1929)-Pantzar,M (2472) Norrkoeping Easter op 2024 (1)}) 13. f3 {[%emt 0:00:39]} Nc4 {[%emt 0:00:31]} 14. Bxc4 {[%emt 0:00:05]} dxc4 {[%emt 0:00:00]} 15. e4 {[%emt 0:01:28]} b5 {[%emt 0:00:57]} 16. a4 {[%emt 0:02:17]} b4 {[%emt 0:00:08]} 17. Nd1 {[%emt 0:00:01]} Ba6 {[%emt 0:00:53]} 18. Re1 {[%emt 0:00:40]} Nd7 {[%emt 0:01:57]} 19. Qc2 {[%emt 0:00:23]} Qa5 {[%emt 0:01:13]} 20. Ne3 {[%emt 0:00:18]} Nb6 {[%emt 0:00:01]} 21. Red1 {[%emt 0:01:29]} Rac8 {[%emt 0:01:27]} 22. Bf2 {[%emt 0:00:29]} Rcd8 {[%emt 0:00:07]} 23. Ng3 {[%emt 0:00:40]} Rd7 {[%emt 0:00:13]} 24. Ng4 {[%emt 0:00:16]} b3 {[%emt 0:00:15]} 25. Qc1 {[%emt 0:00:07]} c3 {[%emt 0:00:05]} 26. Be1 {[%emt 0:00:09]} cxb2 {[%emt 0:00:20]} 27. Qxb2 {[%emt 0:00:05]} Bb4 {[%emt 0:00:04]} 28. Qxb3 {[%emt 0:00:05]} Bxe1 {[%emt 0:00:02]} 29. Rxe1 {[%emt 0:00:00]} Rxd4 {[%emt 0:00:57]} 30. Nf5 {[%emt 0:00:02]} Rd2 {[%emt 0:00:01]} 31. Nfxh6+ {[%emt 0:00:09]} gxh6 {[%emt 0:00:01]} 32. Nf6+ {[%emt 0:00:31]} Kf8 {[%emt 0:00:04]} 33. Qa3+ {[%emt 0:00:12]} Re7 {[%emt 0:00:10]} 34. Rad1 $2 {[%emt 0:00:06] [#]} (34. Ng8 $17 {was the only chance.} c5 (34... Rxg2+ $2 35. Kxg2 c5 36. Nxe7 $18) 35. Nxe7 Nc4) 34... Nc4 $1 $19 {[%emt 0:00:07]} (34... Qxa4 $2 35. Qxa4 (35. Rxd2 $2 Qxa3 36. Rd8+ Kg7 $19) 35... Nxa4 36. Rxd2 $18) 35. Nh7+ {[%emt 0:00:06]} Ke8 {[%emt 0:00:00]} 36. Nf6+ {[%emt 0:00:01]} Kd8 {[%emt 0:00:01]} 37. Rxd2+ $2 {[%emt 0:00:01]} (37. Qc1 Kc7 38. Rxd2 Qxd2 39. Qxd2 Nxd2 40. f4) 37... Qxd2 $19 {[%emt 0:00:00]} 38. Qa1 {[%emt 0:00:01]} Ne3 {[%emt 0:00:14]} 39. Rxe3 {[%emt 0:00:03]} Qxe3+ {[%emt 0:00:00]} 40. Kh1 {[%emt 0:00:02]} Re6 {[%emt 0:00:06]} 41. h3 {[%emt 0:00:02]} Qd2 {[%emt 0:00:06]} 42. Ng4 {[%emt 0:00:02]} Kc7 {[%emt 0:00:05]} 43. Qg7 {[%emt 0:00:02]} Bf1 {[%emt 0:00:03]} 44. Qxf7+ {[%emt 0:00:04]} Kb6 {[%emt 0:00:02]} 45. Ne3 {[%emt 0:00:03]} Qxe3 {[%emt 0:00:28]} 46. Qxe6 {[%emt 0:00:00]} Qf2 {[%emt 0:00:10]} 47. Qb3+ {[%emt 0:00:01]} Kc5 $2 {[%emt 0:00:03]} (47... Ka6 $19 {[%csl Gf1][%cal Rf2g2] has better winning chances.} 48. Qg8 Ka5) 48. Qc3+ $17 {[%emt 0:00:01] [#]} Kb6 $2 {[%emt 0:00:01]} (48... Kd6 $1 $17 {[%csl Gf1][%cal Rf2g2]} 49. Qg7 h5 50. e5+ Kd5 51. Qd7+ Kxe5 52. f4+ Ke4 (52... Qxf4 53. Qc7+ Ke4 54. Qxc6+ Kd4 55. Qd7+ Kc3 56. Qxa7 $11) (52... Kxf4 53. Qf7+ Ke3 54. Qxa7+ Ke2 55. Qa6+ Kd2 56. Qxc6 $11) 53. Qxc6+ Kd4 (53... Kxf4 54. Qc7+ Ke4 55. Qh7+ Kd5 56. Qxh5+ Kc4 57. Qb5+ Kc3 58. Qg5 $17)) 49. Qb3+ $19 {[%emt 0:00:01]} Ka6 {[%emt 0:00:01]} 50. Qg8 {[%emt 0:00:01]} Ka5 {[%emt 0:00:02]} 51. e5 {[%emt 0:00:04]} Qe3 {[%emt 0:00:05]} 52. e6 {[%emt 0:00:01]} Kxa4 {[%emt 0:00:03]} 53. Qe8 $2 {[%emt 0:00:06]} (53. e7 Qxe7 54. Qa2+ Qa3 55. Qc2+ Ka5 56. Qxc6) 53... Bb5 $19 {[%emt 0:00:02]} 54. Qd7 {[%emt 0:00:01]} a5 {[%emt 0:00:02]} 55. e7 {[%emt 0:00:03]} c5 {[%emt 0:00:00]} 56. Qg4+ $2 {[%emt 0:00:02]} (56. Qd1+ Ka3 57. Qa1+ Kb4 58. Qb1+ Kc4 59. Qa2+ Qb3 60. Qe2+ Qd3 61. Qe6+ Kc3 62. Kh2) 56... c4 $19 {[%emt 0:00:01]} 57. Qg6 {[%emt 0:00:03]} Qe1+ {[%emt 0:00:02]} (57... Qxe7 58. Qc2+ Ka3 (58... Kb4 59. Qb2+ Ka4 60. Qc2+ Ka3 61. Qc3+ Ka2 62. Qc2+ Ka1 63. Qc1+ Ka2 64. Qc2+ Ka1 65. Qc1+ Ka2 66. Qc2+ $11) 59. Qc3+ Ka4 60. Qc2+ Ka3 (60... Kb4 61. Qb2+ Ka4 62. Qc2+ $11) 61. Qc3+ Ka4 62. Qc2+ $11) 58. Kh2 {[%emt 0:00:01]} Qe5+ {[%emt 0:00:02]} (58... Qxe7 59. Qc2+ Ka3 (59... Kb4 60. Qb2+ Ka4 61. Qc2+ Ka3 62. Qc3+ Ka2 63. Qc2+ Ka3 64. Qc3+ Ka4 65. Qc2+ $11) 60. Qc3+ Ka2 (60... Ka4 61. Qc2+ Kb4 62. Qb2+ Ka4 63. Qc2+ $11) 61. Qc2+ Ka1 (61... Ka3 62. Qc3+ Ka4 63. Qc2+ Ka3 $11) 62. Qc1+ Ka2 63. Qc2+ Ka3 64. Qc3+ Ka2 (64... Ka4 65. Qc2+ Kb4 66. Qb2+ Ka4 67. Qc2+ $11) 65. Qc2+ $11) 59. Kg1 {[%emt 0:00:01]} Qxe7 $2 {[%emt 0:00:01]} (59... c3 $19 {( -> ...Qc5+)} 60. Qc2+ Kb4 61. Qb1+ Kc5) 60. Qxh6 $2 {[%emt 0:00:01][%mdl 8192]} (60. Qc2+ $11 Ka3 (60... Kb4 61. Qb2+ Ka4 62. Qc2+ Ka3 63. Qc3+ Ka2 64. Qc2+ Ka3 65. Qc3+ Ka2 66. Qc2+ Ka3 $11) 61. Qc3+ Ka4 62. Qc2+ Ka3 (62... Kb4 63. Qb2+ Ka4 64. Qc2+ $11) 63. Qc3+ Ka2 (63... Ka4 64. Qc2+ $11) 64. Qc2+ Ka1 (64... Ka3 65. Qc3+ $11) 65. Qc1+ Ka2 66. Qc2+ Ka3) 60... Qc5+ {[%emt 0:00:01]} 61. Kh2 {[%emt 0:00:01]} c3 {[%emt 0:00:00]} 62. Qc1 {[%emt 0:00:01]} c2 {[%emt 0:00:01]} 63. h4 {[%emt 0:00:04]} Kb3 {[%emt 0:00:02]} 64. g4 {[%emt 0:00:03]} Qf2+ {[%emt 0:00:03]} 65. Kh3 {[%emt 0:00:02]} Bf1+ {[%emt 0:00:02]} 0-1

[Event "CCT Julius Baer-D3 2024"]
[Site "Online"]
[Date "2024.09.27"]
[Round "2.3"]
[White "Santos Latasa, Jaime"]
[Black "Keymer, Vincent"]
[Result "1/2-1/2"]
[ECO "C54"]
[WhiteElo "2624"]
[BlackElo "2730"]
[Annotator "TA"]
[PlyCount "88"]
[EventDate "2024.09.25"]
[EventType "swiss"]
[EventCountry "NET"]
[SourceTitle "playchess.com"]
[Source "ChessBase"]
[SourceQuality "1"]
[TimeControl "600+2"]

{[%evp 27,88,23,25,0,0,0,0,0,8,-33,-22,-29,-12,-79,0,0,24,-95,-100,-195,-216,-173,0,0,0,0,0,0,0,0,0,-95,0,0,0,-54,-69,-70,0,0,0,0,0,0,0,0,0,0,0,0,0,-8,0,0,0,0,0,0,0,0,0,0,0]} 1. e4 {[%emt 0:00:03]} e5 {[%emt 0:00:06]} 2. Nf3 {[%emt 0:00:01]} Nc6 {[%emt 0:00:00]} 3. Bc4 {[%emt 0:00:01]} Nf6 {[%emt 0:00:01]} 4. d3 {[%emt 0:00:01]} Bc5 {[%emt 0:00:01]} 5. O-O {[%emt 0:00:01]} a6 {[%emt 0:00:01]} 6. c3 {[%emt 0:00:02]} Ba7 {[%emt 0:00:03]} 7. a4 {[%emt 0:00:02] now supersedes 7.Bb3. C54: Giuoco Piano: 4 c3 Nf6, main lines with 5 d4 and 5 d3.} d6 {[%emt 0:00:03]} 8. Re1 {[%emt 0:00:01]} O-O {[%emt 0:00:02]} 9. h3 {[%emt 0:00:01]} h6 {[%emt 0:00:01]} 10. Nbd2 {[%emt 0:00:02]} Be6 {[%emt 0:00:01]} 11. Bxe6 {[%emt 0:00:02]} fxe6 {[%emt 0:00:00]} 12. b4 {[%emt 0:00:01]} Ne7 {[%emt 0:00:03]} 13. Nf1 {[%emt 0:00:11]} Ng6 {[%emt 0:00:01]} 14. Ra2 {[%emt 0:00:03]} d5 {[%emt 0:00:01]} 15. exd5 $146 {[%emt 0:00:48]} ({Predecessor:} 15. Qe2 Qd6 16. c4 dxc4 17. dxc4 a5 18. bxa5 Bc5 19. Bd2 Qc6 20. Rb2 b6 21. Rb5 {½-½ Carlsen,M (2830)-Keymer,V (2726) Chess.com Classic Div 1 W rapid 2024 (3.1)}) 15... Nxd5 {[%emt 0:00:23]} 16. Rc2 {[%emt 0:00:04]} Qd7 {[%emt 0:01:09]} 17. a5 {[%emt 0:00:38]} Qa4 {[%emt 0:00:14]} 18. Bd2 {[%emt 0:00:08]} (18. Nxe5 $2 Nxe5 19. d4 (19. Rxe5 $2 Rxf2 20. Be3 Qxc2 $19) 19... Ng6 20. Rxe6 Ngf4 (20... Nxc3 21. Qd3 $11) 21. Bxf4 Nxf4 $19) 18... Rxf3 {[%emt 0:00:54]} 19. gxf3 {[%emt 0:00:07]} Rf8 {[%emt 0:00:02]} 20. Nh2 {[%emt 0:00:20]} (20. Re4 $11) 20... Rf5 {[%emt 0:01:25]} (20... Ndf4 $17 21. Bxf4 Nxf4) 21. Be3 $11 {[%emt 0:00:52]} c5 {[%emt 0:00:47]} 22. Rc1 {[%emt 0:00:32]} (22. Kh1 $11 {keeps the balance.}) 22... Qe8 {[%emt 0:00:03]} 23. bxc5 {[%emt 0:00:03]} (23. Kh1 $17) 23... Ngf4 $1 $19 {[%emt 0:00:04]} (23... Nh4 24. Kh1 $14) 24. Kh1 {[%emt 0:00:02]} Qh5 $2 {[%emt 0:00:18]} ({Black should play} 24... Nxh3 $19 {...Nxe3 is the strong threat.} 25. Re2 Qe7) 25. Rg1 $1 $11 {[%emt 0:00:10]} Nxh3 {[%emt 0:00:03]} 26. Rg2 {[%emt 0:00:05]} Qh4 {[%emt 0:01:24]} 27. Qd2 {[%emt 0:00:32]} Rh5 {[%emt 0:00:13]} 28. Rg4 {[%emt 0:00:08]} Qf6 {[%emt 0:00:01]} 29. c6 {[%emt 0:00:15] [#]} (29. Rg3 $1 $11) 29... Ng5 {[%emt 0:00:52]} (29... bxc6 $1 $17 {[%cal Oh3g5] aiming for ...Ng5!} 30. Qe2 (30. Bxa7 $2 Ng5 $19) 30... Ndf4) 30. Bxg5 $11 {[%emt 0:01:10]} (30. Bxa7 {is a self mate.} Qxf3+ (30... Rxh2+ $2 31. Kxh2 Nxf3+ 32. Kh1 $19) (30... Nxf3 $2 31. Kg2 $19) 31. Rg2 Rxh2+ 32. Kxh2 Qh5+ (32... bxc6 $2 33. Rxg5 hxg5 34. Qd1 $18) 33. Kg1 Nf3+ (33... bxc6 $2 34. Rxg5 hxg5 35. Qd1 $18) 34. Kf1 Nxd2+ 35. Ke1 Nf3+ 36. Ke2 Nf4+ (36... bxc6 37. c4 Nd4+ 38. Kf1 Qh1+ 39. Rg1) 37. Kd1 Nd4+ (37... Nxg2 $2 38. Kc2 $19) (37... Nxg2 $2 38. Kc2 $19)) 30... hxg5 {[%emt 0:00:04]} 31. Kg2 {[%emt 0:00:31]} (31. cxb7 $2 {loses.} Qxf3+ 32. Kg1 Qh3 (32... Rxh2 33. Kxh2 Qxg4 34. Rg1 $19) 33. Rxg5 (33. Rg2 $2 Nf4 $19) 33... Qxh2+ 34. Kf1 Nf4 $19) (31. c4 $11 Qxf3+ 32. Kg1) 31... bxc6 $15 {[%emt 0:00:03]} 32. Rh1 $1 {[%emt 0:00:08]} Nf4+ {[%emt 0:00:10]} (32... Qf5 $1 $15 33. Kg1 Nf4) 33. Rxf4 $1 $11 {[%emt 0:00:02]} Qxf4 {[%emt 0:00:24]} 34. Qxf4 {[%emt 0:00:19]} gxf4 {[%emt 0:00:11]} 35. Rb1 {[%emt 0:00:01]} Bxf2 {[%emt 0:00:07]} 36. Ng4 {[%emt 0:00:06]} Be3 {[%emt 0:00:04]} 37. Rb8+ {[%emt 0:00:19]} Kh7 {[%emt 0:00:01]} 38. Rc8 {[%emt 0:00:06]} e4 {[%emt 0:00:17]} 39. fxe4 {[%emt 0:00:17]} Rxa5 {[%emt 0:00:00]} 40. Rxc6 {[%emt 0:00:03]} Rc5 {[%emt 0:00:09]} 41. Rxa6 {[%emt 0:00:16]} Rxc3 {[%emt 0:00:01]} 42. Rd6 {[%emt 0:00:01]} Bc5 {[%emt 0:00:10]} 43. Rd7 {[%emt 0:00:15]} Kg6 {[%emt 0:00:22]} 44. Kf3 {[%emt 0:00:05]} Be3 {[%emt 0:00:11]} 1/2-1/2

[Event "CCT Julius Baer-D3 2024"]
[Site "Online"]
[Date "2024.09.27"]
[Round "2.3"]
[White "Theodorou, Nikolas"]
[Black "Makarian, Rudik"]
[Result "1-0"]
[ECO "C26"]
[WhiteElo "2619"]
[BlackElo "2550"]
[Annotator "TA"]
[PlyCount "91"]
[EventDate "2024.09.25"]
[EventType "swiss"]
[EventCountry "NET"]
[SourceTitle "playchess.com"]
[Source "ChessBase"]
[SourceQuality "1"]
[TimeControl "600+2"]

{[%evp 19,91,-12,-11,-21,0,0,9,0,0,0,13,21,16,11,12,21,16,14,13,0,0,0,23,0,0,0,64,63,88,90,114,107,119,110,102,112,153,157,206,206,229,237,263,271,268,268,254,227,266,262,255,247,316,315,485,485,680,680,664,659,1338,1136,1084,954,3281,3281,5672,4610,29969,29974,29976,29976,29969,29969]} 1. e4 {[%emt 0:00:02]} e5 {[%emt 0:00:03]} 2. Nf3 {[%emt 0:00:02]} Nc6 {[%emt 0:00:00]} 3. Nc3 {[%emt 0:00:00]} Nf6 {[%emt 0:00:03]} 4. g3 {[%emt 0:00:01]} Bc5 {[%emt 0:00:19]} 5. Bg2 {[%emt 0:00:02]} d6 {[%emt 0:00:01]} 6. d3 {[%emt 0:00:01]} a5 {[%emt 0:00:03] is the new trend. C26: Vienna Game: 2...Nf6, sidelines .} 7. O-O {[%emt 0:00:04]} h6 {[%emt 0:00:12]} 8. h3 {[%emt 0:00:06]} O-O {[%emt 0:00:22]} 9. Kh2 {[%emt 0:00:08]} Be6 {[%emt 0:00:18]} 10. Na4 {[%emt 0:00:12]} Ba7 {[%emt 0:00:03]} 11. c4 {[%emt 0:00:00]} Nd7 {[%emt 0:00:13]} 12. Be3 {[%emt 0:00:01]} Nd4 $146 {[%emt 0:00:45]} ({Predecessor:} 12... f5 13. exf5 Bxf5 14. Bxa7 Rxa7 15. d4 Kh8 16. Nc3 Ra8 17. dxe5 Ndxe5 18. Nxe5 Nxe5 {1-0 Sadhwani,R (2654)-Wagner,D (2613) Chess.com Classic Play In rapid 2024 (3)}) 13. Nc3 {[%emt 0:00:14]} Nxf3+ {[%emt 0:00:18]} 14. Qxf3 {[%emt 0:00:12]} c6 {[%emt 0:00:21]} 15. Bxa7 {[%emt 0:00:07]} Rxa7 {[%emt 0:00:00]} 16. Qe3 {[%emt 0:00:00]} Qb6 {[%emt 0:00:39]} 17. Qxb6 {[%emt 0:00:02]} Nxb6 {[%emt 0:00:00]} 18. f4 {[%emt 0:00:00]} f6 {[%emt 0:00:02]} 19. h4 {[%emt 0:00:01]} Nd7 {[%emt 0:00:07]} 20. Rad1 {[%emt 0:00:12]} Raa8 {[%emt 0:01:23]} 21. Bh3 {[%emt 0:00:07]} Bxh3 {[%emt 0:00:10]} 22. Kxh3 {[%emt 0:00:00]} f5 {[%emt 0:01:26]} ({Black should try} 22... a4 $11) 23. fxe5 $14 {[%emt 0:00:51]} fxe4 {[%emt 0:00:04]} 24. Rxf8+ {[%emt 0:00:05]} (24. exd6 $6 Rxf1 25. Rxf1 exd3 $11) 24... Rxf8 {[%emt 0:00:08]} 25. e6 {[%emt 0:01:16]} ({Don't play} 25. Nxe4 $6 dxe5 26. c5 a4 $14) ({Not} 25. dxe4 Nxe5 26. Rxd6 h5 $15) 25... Nc5 {[%emt 0:00:35]} 26. Nxe4 {[%emt 0:00:26]} ({Much less strong is} 26. dxe4 $6 Nxe6 27. Rxd6 Nc5 $11) 26... Nxe6 {[%emt 0:00:04]} 27. Nxd6 {[%emt 0:00:01]} Rf2 {[%emt 0:00:08]} 28. Nxb7 {[%emt 0:00:23]} Rxb2 {[%emt 0:00:01]} (28... a4 $16) 29. Nxa5 $18 {[%emt 0:00:07]} Nd4 {[%emt 0:01:06]} 30. Nb3 $1 {[%emt 0:00:03]} Nxb3 {[%emt 0:00:11]} 31. axb3 {[%emt 0:00:00]} Rxb3 {[%emt 0:00:00]} 32. Kg4 {[%emt 0:00:01]} Kf7 {[%emt 0:00:01]} 33. Kf5 {[%emt 0:00:02]} Ra3 {[%emt 0:00:12]} 34. Rf1 {[%emt 0:00:44]} Ra5+ {[%emt 0:00:10]} 35. Ke4+ {[%emt 0:00:01]} Ke6 {[%emt 0:00:00] [#]} 36. Rf8 $1 {[%emt 0:00:21]} Ra1 {[%emt 0:00:46]} (36... Re5+ {is a better defense.} 37. Kf4 g5+ 38. Kg4 Ke7) 37. Re8+ $18 {[%emt 0:00:12]} Kd6 {[%emt 0:00:04]} (37... Kd7 $142 38. Rg8 Re1+ 39. Kd4 Re7) 38. Kf5 $18 {[%emt 0:00:39]} Kc5 {[%emt 0:00:33]} 39. Kg6 {[%emt 0:00:24]} Ra7 {[%emt 0:00:05]} 40. Rg8 {[%emt 0:00:14]} Rd7 {[%emt 0:00:07]} 41. Rxg7 {[%emt 0:00:03]} Rxd3 {[%emt 0:00:02]} 42. Kxh6 {[%emt 0:00:03]} Kxc4 {[%emt 0:00:00]} 43. g4 {[%emt 0:00:03]} c5 {[%emt 0:00:04]} 44. g5 {[%emt 0:00:06]} Kb5 {[%emt 0:00:08]} 45. g6 {[%emt 0:00:10]} c4 {[%emt 0:00:01]} 46. Rc7 {[%emt 0:00:09]} 1-0

[Event "CCT Julius Baer-D3 2024"]
[Site "Online"]
[Date "2024.09.27"]
[Round "2.3"]
[White "Kamsky, Gata"]
[Black "Sindarov, Javokhir"]
[Result "1/2-1/2"]
[ECO "D00"]
[WhiteElo "2609"]
[BlackElo "2677"]
[Annotator "TA"]
[PlyCount "45"]
[EventDate "2024.09.25"]
[EventType "swiss"]
[EventCountry "NET"]
[SourceTitle "playchess.com"]
[Source "ChessBase"]
[SourceQuality "1"]
[TimeControl "600+2"]

{[%evp 9,45,-3,12,8,10,6,17,0,16,19,11,16,19,15,8,7,25,21,36,38,33,0,0,0,0,0,0,0,0,0,0,0,0,0,0,0,6,0]} 1. d4 {[%emt 0:00:03]} Nf6 {[%emt 0:00:05]} 2. Bf4 {[%emt 0:00:02]} d5 {[%emt 0:00:03]} 3. e3 {[%emt 0:00:02]} c5 {[%emt 0:00:01]} 4. c3 {[%emt 0:00:03]} Nc6 {[%emt 0:00:35]} 5. Nd2 {[%emt 0:00:04]} cxd4 {[%emt 0:01:18]} 6. exd4 {[%emt 0:00:04]} Bf5 {[%emt 0:00:01]} 7. Ngf3 {[%emt 0:00:04]} e6 {[%emt 0:00:00]} 8. Bb5 {[%emt 0:00:02]} Bd6 {[%emt 0:00:16]} 9. Bxd6 {[%emt 0:00:04]} Qxd6 {[%emt 0:00:00]} 10. O-O {[%emt 0:00:02]} O-O {[%emt 0:00:08]} 11. Re1 {[%emt 0:00:02]} a6 {[%emt 0:00:13]} 12. Bxc6 {[%emt 0:00:12]} bxc6 {[%emt 0:00:35]} 13. b4 {[%emt 0:00:03]} a5 {[%emt 0:00:01]} 14. a3 {[%emt 0:00:02]} Bg4 {[%emt 0:00:17]} 15. Qc2 {[%emt 0:00:06]} Bxf3 {[%emt 0:00:23] The position is equal.} 16. Nxf3 {[%emt 0:00:02][%cal Bd2f3,Bf3e5,Be5d3,Bd3c5][%mdl 32]} Ra7 {[%emt 0:00:01]} 17. Ne5 {[%emt 0:00:25]} Rfa8 {[%emt 0:00:02]} 18. a4 {[%emt 0:02:16]} Nd7 {[%emt 0:00:31]} 19. Nd3 {[%emt 0:00:03]} Nb6 {[%emt 0:00:05]} 20. Nc5 {[%emt 0:00:03]} Nd7 {[%emt 0:00:28]} 21. Nd3 {[%emt 0:01:16]} Nb6 {[%emt 0:00:02]} 22. Nc5 {[%emt 0:01:15]} Nd7 {[%emt 0:00:04]} 23. Nd3 {[%emt 0:00:26] Weighted Error Value: White=0.03 (flawless) /Black=0.03 (flawless) .  Inaccurate:     	White=1     	---        OK:         	White=9     	Black=9} 1/2-1/2

[Event "CCT Julius Baer-D3 2024"]
[Site "Online"]
[Date "2024.09.27"]
[Round "2.4"]
[White "Keymer, Vincent"]
[Black "Santos Latasa, Jaime"]
[Result "1-0"]
[ECO "A17"]
[WhiteElo "2730"]
[BlackElo "2624"]
[Annotator "TA"]
[PlyCount "89"]
[EventDate "2024.09.25"]
[EventType "swiss"]
[EventCountry "NET"]
[SourceTitle "playchess.com"]
[Source "ChessBase"]
[SourceQuality "1"]
[TimeControl "600+2"]

{[%evp 9,89,0,0,2,0,-10,5,-14,3,-9,44,49,55,63,50,48,48,43,82,80,81,79,103,14,110,97,104,98,102,98,108,103,102,92,122,99,143,146,149,149,183,131,247,239,245,249,227,252,250,257,247,233,291,265,5161,5161,29961,29966,29968,29968,29963,6252,29977,29975,29980,29977,29976,29975,29975,29976,29976,29977,29977,29978,29978,29979,29979,29980,29980,29981,29981,29982]} 1. Nf3 {[%emt 0:00:02]} d5 {[%emt 0:00:05]} 2. e3 {[%emt 0:00:02][%cal Be2e3,Be3e4,Be4e5][%mdl 32]} Nf6 {[%emt 0:00:01]} 3. c4 {[%emt 0:00:00]} e6 {[%emt 0:00:01]} 4. Nc3 {[%emt 0:00:01]} dxc4 {[%emt 0:00:21]} 5. Bxc4 {[%emt 0:00:01]} a6 {[%emt 0:00:01]} 6. e4 {[%emt 0:00:00]} b5 {[%emt 0:00:08]} 7. Bb3 {[%emt 0:00:01]} Bb7 {[%emt 0:00:10]} 8. e5 {[%emt 0:00:02] The position is equal.} Nd5 {[%emt 0:00:03]} 9. d4 {[%emt 0:00:05]} c5 {[%emt 0:00:12]} ({Better is} 9... Nxc3 $11 10. bxc3 c5) 10. Bxd5 $14 {[%emt 0:00:02]} Bxd5 {[%emt 0:00:06]} 11. Bg5 {[%emt 0:00:01]} Qd7 {[%emt 0:00:07]} 12. Nxd5 {[%emt 0:00:06]} Qxd5 {[%emt 0:00:04]} 13. dxc5 {[%emt 0:00:03]} Bxc5 {[%emt 0:01:00]} 14. Qxd5 {[%emt 0:00:04]} exd5 {[%emt 0:00:00]} 15. Rd1 {[%emt 0:00:06]} Nc6 {[%emt 0:00:07]} 16. Rxd5 {[%emt 0:00:34]} (16. Rc1 $16 Bb4+ 17. Ke2) 16... Be7 {[%emt 0:00:02]} (16... Nb4 $1 $11 {remains equal.} 17. Rd1 (17. Rxc5 $2 Nd3+ 18. Ke2 Nxc5 $19) 17... h6) 17. Bxe7 $16 {[%emt 0:00:21]} Kxe7 {[%emt 0:00:01] [#]} 18. Ke2 $1 {[%emt 0:00:02]} Rac8 {[%emt 0:00:08]} 19. Rhd1 {[%emt 0:00:27]} Rhd8 {[%emt 0:00:06] Against Rd7+} 20. Rxd8 {[%emt 0:02:00]} Nxd8 {[%emt 0:00:00][%mdl 4096] Endgame. KRN-KRN} 21. Nd4 {[%emt 0:00:16] White is more active.} g6 {[%emt 0:00:09]} 22. f4 {[%emt 0:00:04]} Rc4 {[%emt 0:00:08]} 23. b3 {[%emt 0:00:06]} Rc5 {[%emt 0:00:04]} 24. Ke3 {[%emt 0:00:07]} b4 {[%emt 0:00:20]} 25. g3 {[%emt 0:00:22]} (25. Rd2 $18) 25... Nb7 {[%emt 0:00:17]} (25... Ne6 $16 26. Nxe6 fxe6) 26. Kd2 $18 {[%emt 0:00:28]} Nd8 {[%emt 0:00:48] [#]} 27. Rc1 $1 {[%emt 0:00:06]} Ra5 {[%emt 0:00:12]} 28. Rc2 {[%emt 0:00:09]} Kd7 {[%emt 0:00:06]} 29. Ke3 {[%emt 0:00:09]} Ne6 {[%emt 0:00:46]} 30. Nxe6 {[%emt 0:00:04]} fxe6 {[%emt 0:00:15] KR-KR} 31. g4 {[%emt 0:00:02]} Rd5 $2 {[%emt 0:00:08]} (31... Rb5 32. Rc4 h6) 32. Rd2 {[%emt 0:00:42]} Kc6 {[%emt 0:00:07]} 33. Rxd5 {[%emt 0:00:01]} Kxd5 {[%emt 0:00:00] KP-KP} 34. h4 {[%emt 0:00:09]} a5 {[%emt 0:00:13]} 35. Kd3 {[%emt 0:00:01] Ke3 would kill now.} h6 {[%emt 0:00:02]} 36. Ke3 {[%emt 0:00:00] White mates.} g5 {[%emt 0:00:21]} 37. fxg5 {[%emt 0:00:16]} hxg5 {[%emt 0:00:02]} 38. hxg5 {[%emt 0:00:01]} Kxe5 {[%emt 0:00:01]} 39. Kd3 {[%emt 0:00:04]} Kd6 {[%emt 0:00:04]} 40. Ke4 {[%emt 0:00:02]} Ke7 {[%emt 0:00:01]} 41. Ke5 {[%emt 0:00:03]} Kf7 {[%emt 0:00:01]} 42. Kd6 {[%emt 0:00:05]} Kg6 {[%emt 0:00:01]} 43. Kxe6 {[%emt 0:00:00]} Kxg5 {[%emt 0:00:01]} 44. Kd5 {[%emt 0:00:01]} Kxg4 {[%emt 0:00:00]} 45. Kc5 {[%emt 0:00:00] Weighted Error Value: White=0.07 (flawless) /Black=0.51.  Mistake:       	White=2     	Black=4      Inaccurate:     	---       	Black=4      OK:         	White=15    	Black=6      Best:        	White=3     	---        Strong:       	White=1     	---} 1-0